Workbook

Sheet Logistic
B2: Alpha | D2: =0.01*M2 -> 3.9 | M2: 390
B5: 0 | C5: 0.2 | D5: =C6 -> 0.624
B6: 1 | C6: =Alpha*C5*(1-C5) -> 0.624 | D6: =C7 -> 0.9150336
B7: 2 | C7: =Alpha*C6*(1-C6) -> 0.9150336 | D7: 0.3032137324
B8: 3 | C8: 0.3032137324 | D8: 0.823973143
B9: 4 | C9: 0.823973143 | D9: 0.5656614701
B10: 5 | C10: 0.5656614701 | D10: 0.9581854282
B11: 6 | C11: 0.9581854282 | D11: 0.156257842
B12: 7 | C12: 0.156257842 | D12: 0.5141811824
B13: 8 | C13: 0.5141811824 | D13: 0.9742156869
B14: 9 | C14: 0.9742156869 | D14: 0.09796598114
B15: 10 | C15: 0.09796598114 | D15: 0.344637726
B16: 11 | C16: 0.344637726 | D16: 0.8808639988
B17: 12 | C17: 0.8808639988 | D17: 0.4092761961
B18: 13 | C18: 0.4092761961 | D18: 0.9428998465
B19: 14 | C19: 0.9428998465 | D19: 0.2099749313
B20: 15 | C20: 0.2099749313 | D20: 0.6469532921
B21: 16 | C21: 0.6469532921 | D21: 0.8907784468
B22: 17 | C22: 0.8907784468 | D22: 0.3794396015
B23: 18 | C23: 0.3794396015 | D23: 0.9183142423
B24: 19 | C24: 0.9183142423 | D24: 0.2925514594
B25: 20 | C25: 0.2925514594 | D25: 0.8071639017
B26: 21 | C26: 0.8071639017 | D26: 0.6070363162
B27: 22 | C27: 0.6070363162 | D27: 0.9303185853
B28: 23 | C28: 0.9303185853 | D28: 0.252821069
B29: 24 | C29: 0.252821069 | D29: 0.7367200467
B30: 25 | C30: 0.7367200467 | D30: 0.756458116
B31: 26 | C31: 0.756458116 | D31: 0.7184940154
B32: 27 | C32: 0.7184940154 | D32: 0.7888154243
B33: 28 | C33: 0.7888154243 | D33: 0.6496840376
B34: 29 | C34: 0.6496840376 | D34: 0.8876192867
B35: 30 | C35: 0.8876192867 | D35: 0.3890300255
B36: 31 | C36: 0.3890300255 | D36: 0.9269740926
B37: 32 | C37: 0.9269740926 | D37: 0.2640031846
B38: 33 | C38: 0.2640031846 | D38: 0.7577914622
B39: 34 | C39: 0.7577914622 | D39: 0.7158198918
B40: 35 | C40: 0.7158198918 | D40: 0.7933449198
B41: 36 | C41: 0.7933449198 | D41: 0.6394001564
B42: 37 | C42: 0.6394001564 | D42: 0.899213626
B43: 38 | C43: 0.899213626 | D43: 0.3534510753
B44: 39 | C44: 0.3534510753 | D44: 0.8912413094
B45: 40 | C45: 0.8912413094 | D45: 0.3780279274
B46: 41 | C46: 0.3780279274 | D46: 0.9169789726
B47: 42 | C47: 0.9169789726 | D47: 0.2969012919
B48: 43 | C48: 0.2969012919 | D48: 0.8141285676
B49: 44 | C49: 0.8141285676 | D49: 0.5901606477
B50: 45 | C50: 0.5901606477 | D50: 0.9432971246
B51: 46 | C51: 0.9432971246 | D51: 0.2086018712
B52: 47 | C52: 0.2086018712 | D52: 0.6438398091
B53: 48 | C53: 0.6438398091 | D53: 0.8943094263
B54: 49 | C54: 0.8943094263 | D54: 0.3686282977
B55: 50 | C55: 0.3686282977 | D55: 0.9076917557
B56: 51 | C56: 0.9076917557 | D56: 0.3267709861
B57: 52 | C57: 0.3267709861 | D57: 0.8579676641
B58: 53 | C58: 0.8579676641 | D58: 0.4752506907
B59: 54 | C59: 0.4752506907 | D59: 0.9726111396
B60: 55 | C60: 0.9726111396 | D60: 0.1038909718
B61: 56 | C61: 0.1038909718 | D61: 0.3630807875
B62: 57 | C62: 0.3630807875 | D62: 0.9018872041
B63: 58 | C63: 0.9018872041 | D63: 0.3450980333
B64: 59 | C64: 0.3450980333 | D64: 0.8814209848
B65: 60 | C65: 0.8814209848 | D65: 0.4076203261
B66: 61 | C66: 0.4076203261 | D66: 0.9417173838
B67: 62 | C67: 0.9417173838 | D67: 0.2140544361
B68: 63 | C68: 0.2140544361 | D68: 0.6561170245
B69: 64 | C69: 0.6561170245 | D69: 0.8799471512
B70: 65 | C70: 0.8799471512 | D70: =C71 -> 0.4119966331
B71: 66 | C71: =Alpha*C70*(1-C70) -> 0.4119966331 | D71: 0.9447960889
B72: 67 | C72: 0.9447960889 | D72: 0.2034101133
B73: 68 | C73: 0.2034101133 | D73: 0.6319343126
B74: 69 | C74: 0.6319343126 | D74: 0.9071140149
B75: 70 | C75: 0.9071140149 | D75: 0.3286068975
B76: 71 | C76: 0.3286068975 | D76: 0.8604351772
B77: 72 | C77: 0.8604351772 | D77: 0.4683372839
B78: 73 | C78: 0.4683372839 | D78: 0.9710901424
B79: 74 | C79: 0.9710901424 | D79: 0.1094889031
B80: 75 | C80: 0.1094889031 | D80: 0.3802542246
B81: 76 | C81: 0.3802542246 | D81: 0.9190777022
B82: 77 | C82: 0.9190777022 | D82: 0.2900581302
B83: 78 | C83: 0.2900581302 | D83: 0.8031052042
B84: 79 | C84: 0.8031052042 | D84: 0.6166962173
B85: 80 | C85: 0.6166962173 | D85: 0.9218897722
B86: 81 | C86: 0.9218897722 | D86: 0.2808351785
B87: 82 | C87: 0.2808351785 | D87: 0.787670446
B88: 83 | C88: 0.787670446 | D88: 0.6522582865
B89: 84 | C89: 0.6522582865 | D89: 0.8845879154
B90: 85 | C90: 0.8845879154 | D90: 0.3981593279
B91: 86 | C91: 0.3981593279 | D91: 0.9345510622
B92: 87 | C92: 0.9345510622 | D92: 0.2385449598
B93: 88 | C93: 0.2385449598 | D93: 0.7084009216
B94: 89 | C94: 0.7084009216 | D94: 0.8056193179
B95: 90 | C95: 0.8056193179 | D95: 0

Sheet Roessler
A2: v' = -d u + f v - e z
A3: u' = h v
A4: z' = b + g z (v - c)
A6: d | C6: =0.01*M6 -> 0.55 | M6: 55
A7: f | C7: =0.01*M7 -> 0.18 | M7: 18
A8: e | C8: =0.01*M8 -> 0.32 | M8: 32
A9: h | C9: =0.01*M9 -> 0.53 | M9: 53
A10: b | C10: =0.01*M10 -> 0.05 | M10: 5
A11: g | C11: =M11 -> 55 | M11: 55
A12: c | C12: =0.01*M12 -> 0.16 | M12: 16
A13: dh | C13: =0.01*M13 -> 0.1 | M13: 10
A15: v | B15: u | C15: z
A16: 0.02 | B16: 0.03 | C16: 0.02
A17: =A16+$C$13*(-$C$6*B16+$C$7*A16-$C$8*C16) -> 0.01807 | B17: =B16+$C$13*($C$9*A16) -> 0.03106 | C17: =C16+$C$13*($C$10+$C$11*C16*(A16-$C$12)) -> 0.0096
A18: =A17+$C$13*(-$C$6*B17+$C$7*A17-$C$8*C17) -> 0.01637976 | B18: =B17+$C$13*($C$9*A17) -> 0.03201771 | C18: =C17+$C$13*($C$10+$C$11*C17*(A17-$C$12)) -> 0.007106096
A19: 0.01468622656 | B19: 0.03288583728 | C19: 0.006492910329
A20: 0.01293408446 | B20: 0.03366420729 | C20: 0.006303609176
A21: 0.01111365108 | B21: 0.03434971376 | C21: 0.006204855875
A22: 0.009225907155 | B22: 0.03493873727 | C22: 0.006123855023
A23: 0.007274379573 | B23: 0.03542771035 | C23: 0.006045602251
A24: 0.005263335065 | B24: 0.03581325247 | C24: 0.005967351301
A25: 0.003197390968 | B25: 0.03609220923 | C25: 0.005888827087
A26: 0.001081430032 | B26: 0.03626167095 | C26: 0.005810218104
A27: -0.001079423109 | B27: 0.03631898674 | C27: 0.005731784566
A28: -0.003279814102 | B28: 0.03626177731 | C28: 0.005653785534
A29: -0.005514169645 | B29: 0.03608794717 | C29: 0.005576465754
A30: -0.007776708697 | B30: 0.03579569618 | C30: 0.00550005321
A31: -0.01006145445 | B31: 0.03538353061 | C31: 0.005424758671
A32: -0.01236224709 | B32: 0.03485027353 | C32: 0.005350775748
A33: -0.0146727574 | B33: 0.03419507443 | C33: 0.005278281224
A34: -0.01698650113 | B34: 0.03341741829 | C34: 0.005207435577
A35: -0.01929685409 | B35: 0.03251713373 | C35: 0.005138383663
A36: -0.0215970681 | B36: 0.03149440046 | C36: 0.005071255521
A37: -0.02388028753 | B37: 0.03034975585 | C37: 0.005006167283
A38: -0.02613956663 | B38: 0.02908410062 | C38: 0.004943222146
A39: -0.02836788747 | B39: 0.02769870358 | C39: 0.004882511392
A40: -0.03055817851 | B40: 0.02619520555 | C40: 0.004824115431
A41: -0.03270333372 | B41: 0.02457562209 | C41: 0.004768104859
A42: -0.0347962323 | B42: 0.0228423454 | C42: 0.004714541499
A43: -0.0368297588 | B43: 0.02099814509 | C43: 0.004663479433
A44: -0.03879682378 | B44: 0.01904616787 | C44: 0.004614966007
A45: -0.04069038476 | B45: 0.01698993621 | C45: 0.004569042795
A46: -0.04250346754 | B46: 0.01483334582 | C46: 0.004525746534
A47: -0.04422918787 | B47: 0.01258066204 | C47: 0.004485110019
A48: -0.04586077318 | B48: 0.01023651508 | C48: 0.004447162947
A49: -0.04739158464 | B49: 0.007805894104 | C49: 0.004411932732
A50: -0.04881513919 | B50: 0.005294140118 | C50: 0.004379445269
A51: -0.05012513165 | B51: 0.002706937741 | C51: 0.004349725665
A52: -0.05131545682 | B52: 5.030576378e-05 | C52: 0.004322798936
A53: -0.05238023142 | B53: -0.002669413448 | C53: 0.004298690661
A54: -0.05331381595 | B54: -0.005445565713 | C54: 0.004277427615
A55: -0.05411083621 | B55: -0.008271197958 | C55: 0.004259038376
A56: -0.0547662046 | B56: -0.01113907228 | C56: 0.004243553901
A57: -0.05527514103 | B57: -0.01404168112 | C57: 0.004231008092
A58: -0.05563319337 | B58: -0.0169712636 | C58: 0.004221438342
A59: -0.05583625738 | B59: -0.01991982284 | C59: 0.004214886075
A60: -0.05588059611 | B60: -0.02287914449 | C60: 0.004211397279
A61: -0.0557628586 | B61: -0.02584081608 | C61: 0.004211023026
A62: -0.05548009791 | B62: -0.02879624758 | C62: 0.004213820014
A63: -0.0550297883 | B63: -0.03173669277 | C63: 0.004219851093
A64: -0.05440984162 | B64: -0.03465327155 | C64: 0.004229185813
A65: -0.05361862278 | B65: -0.03753699316 | C65: 0.004241900981
A66: -0.0526549642 | B66: -0.04037878017 | C66: 0.004258081231
A67: -0.05151817924 | B67: -0.04316949327 | C67: 0.004277819617
A68: -0.05020807457 | B68: -0.04589995677 | C68: 0.004301218226
A69: -0.04872496127 | B69: -0.04856098472 | C69: 0.004328388817
A70: -0.04706966485 | B70: -0.05114340767 | C70: 0.004359453482
A71: -0.04524353391 | B71: -0.05363809991 | C71: 0.004394545339
A72: -0.04324844748 | B72: -0.0560360072 | C72: 0.004433809255
A73: -0.04108682103 | B73: -0.05832817492 | C73: 0.004477402594
A74: -0.03876161107 | B74: -0.06050577643 | C74: 0.004525495996
A75: -0.03627631824 | B75: -0.06256014182 | C75: 0.004578274183
A76: -0.03363498894 | B76: -0.06448278669 | C76: 0.00463593678
A77: -0.03084221545 | B77: -0.0662654411 | C77: 0.004698699161
A78: -0.02790313444 | B78: -0.06790007852 | C78: 0.004766793294
A79: -0.02482342393 | B79: -0.06937894465 | C79: 0.004840468587
A80: -0.0216092986 | B80: -0.07069458611 | C80: 0.00491999271
A81: -0.01826750351 | B81: -0.07183987894 | C81: 0.005005652371
A82: =A81+$C$13*(-$C$6*B81+$C$7*A81-$C$8*C81) -> -0.0148053061 | B82: =B81+$C$13*($C$9*A81) -> -0.07280805663 | C82: =C81+$C$13*($C$10+$C$11*C81*(A81-$C$12)) -> 0.005097754037
A83: -0.01123048663 | B83: -0.07359273785 | C83: 0.005196624535
A84: -0.00755132679 | B84: -0.07418795364 | C84: 0.005302611521
A85: -0.003776596791 | B85: -0.07458817396 | C85: 0.005416083744
A86: 8.44593548e-05 | B86: -0.07478833359 | C86: 0.005537431045
A87: 0.004022140177 | B87: -0.07478385724 | C87: 0.005667064009
A88: 0.008026304801 | B88: -0.07457068382 | C88: 0.005805413173
A89: 0.01208639268 | B89: -0.07414528966 | C89: 0.005952927667
A90: 0.01619144499 | B90: -0.07350471085 | C90: 0.006110073137
A91: 0.02033012776 | B91: -0.07264656426 | C91: 0.006277328798
A92: 0.02449075657 | B92: -0.07156906749 | C92: 0.006455183386
A93: 0.02866132303 | B93: -0.0702710574 | C93: 0.006644129793
A94: 0.03282952285 | B94: -0.06875200727 | C94: 0.006844658102
A95: 0.0369827856 | B95: -0.06701204256 | C95: 0.0070572467
A96: 0.04110830619 | B96: -0.06505195493 | C96: 0.007282351133
A97: 0.04519307798 | B97: -0.0628732147 | C97: 0.007520390297
A98: 0.04922392771 | B98: -0.06047798157 | C98: 0.007771729554
A99: 0.05318755205 | B99: -0.0578691134 | C99: 0.008036660342
A100: 0.05707055609 | B100: -0.05505017314 | C100: 0.008315375837
A101: 0.06085949359 | B101: -0.05202543367 | C101: 0.008607942278
A102: 0.06454090918 | B102: -0.04879988051 | C102: 0.008914265617
A103: 0.06810138247 | B103: -0.04537921232 | C103: 0.009234053316
A104: 0.07152757433 | B104: -0.04176983905 | C104: 0.009566771279
A105: 0.07480627513 | B105: -0.03797887761 | C105: 0.009911596244
A106: 0.07792445527 | B106: -0.03401414503 | C106: 0.01026736433
A107: 0.08086931779 | B107: -0.0298841489 | C107: 0.01063251697
A108: 0.08362835315 | B108: -0.02559807506 | C108: 0.0110050462
A109: 0.08618939616 | B109: -0.02116577234 | C109: 0.01138244194
A110: 0.08854068463 | B110: -0.01659773434 | C110: 0.01176164492
A111: 0.0906709197 | B111: -0.01190507806 | C111: 0.0121390099
A112: 0.09256932723 | B112: -0.007099519313 | C112: 0.01251028475
A113: 0.09422571957 | B113: -0.002193344969 | C113: 0.0128706117
A114: 0.09563055692 | B114: 0.002800618168 | C114: 0.01321455797
A115: 0.09677500709 | B115: 0.007869037685 | C115: 0.01353618242
A116: 0.09765100231 | B116: 0.01299811306 | C116: 0.01382914471
A117: 0.0982512915 | B117: 0.01817361618 | C117: 0.0140868615
A118: 0.09856948629 | B118: 0.02338093463 | C118: 0.01430271122
A119: 0.09860009888 | B119: 0.02860511741 | C119: 0.01447028529
A120: 0.09833857007 | B120: 0.03383092265 | C120: 0.01458367781
A121: 0.0977812859 | B121: 0.03904286686 | C121: 0.01463780046
A122: 0.09692558175 | B122: 0.04422527501 | C122: 0.01462870229
A123: 0.09576973363 | B123: 0.04936233085 | C123: 0.01455386941
A124: 0.09431293681 | B124: 0.05443812673 | C124: 0.01441247541
A125: 0.09255527349 | B125: 0.05943671238 | C125: 0.01420555291
A126: 0.09049767154 | B126: 0.06434214188 | C126: 0.01393605994
A127: 0.08814185791 | B127: 0.06913851847 | C127: 0.01360882255
A128: 0.08549031051 | B128: 0.07381003694 | C128: 0.01323034668
A129: 0.08254621298 | B129: 0.07834102339 | C129: 0.01280850705
A130: 0.0793134163 | B130: 0.08271597268 | C130: 0.01235213648
A131: 0.07579641093 | B131: 0.08691958375 | C131: 0.01187055216
A132: 0.07200031155 | B132: 0.09093679352 | C132: 0.01137306513
A133: 0.06793085543 | B133: 0.09475281004 | C133: 0.0108685211
A134: 0.0635944136 | B134: 0.09835314537 | C134: 0.01036491618
A135: 0.05899801273 | B135: 0.1017236493 | C135: 0.009869119155
A136: 0.05414936444 | B136: 0.104850544 | C136: 0.009386715595
A137: 0.04905689818 | B137: 0.1077204603 | C137: 0.008921971631
A138: 0.04372979394 | B138: 0.1103204759 | C138: 0.008477899992
A139: 0.03817801126 | B139: 0.112638155 | C139: 0.008056400507
A140: 0.03241231212 | B140: 0.1146615896 | C140: 0.007658443482
A141: 0.02644427612 | B141: 0.1163794421 | C141: 0.00728426645
A142: 0.02028630725 | B142: 0.1177809887 | C142: 0.006933561317
A143: 0.01395163244 | B143: 0.118856163 | C143: 0.006605637312
A144: 0.007454292459 | B144: 0.1195955995 | C144: 0.006299553308
A145: 0.0008091260423 | B145: 0.119990677 | C145: 0.006014219317
A146: =A145+$C$13*(-$C$6*B145+$C$7*A145-$C$8*C145) -> -0.005968251944 | B146: =B145+$C$13*($C$9*A145) -> 0.1200335607 | C146: =C145+$C$13*($C$10+$C$11*C145*(A145-$C$12)) -> 0.005748470756
A147: -0.01286147738 | B147: 0.1197172434 | C147: 0.005501120721
A148: -0.01985346822 | B148: 0.1190355851 | C148: 0.005270995518
A149: -0.02692645969 | B149: 0.1179833513 | C149: 0.005056957981
A150: -0.03406204294 | B150: 0.1165562489 | C150: 0.004857922094
A151: -0.04124120691 | B151: 0.1147509606 | C151: 0.004672861521
A152: -0.04844438303 | B152: 0.1125651766 | C152: 0.004500813914
A153: -0.05565149269 | B153: 0.1099976243 | C153: 0.004340882327
A154: -0.06284199713 | B154: 0.1070480952 | C154: 0.004192234683
A155: -0.06999494983 | B155: 0.1037174694 | C155: 0.004054101962
A156: -0.077089051 | B156: 0.100007737 | C156: 0.003925775587
A157: -0.08410270428 | B157: 0.09592201734 | C157: 0.003806604341
A158: -0.09101407525 | B158: 0.09146457402 | C158: 0.003695991065
A159: -0.09780115189 | B159: 0.08664082803 | C159: 0.003593389279
A160: -0.1044418066 | B160: 0.08145736698 | C160: 0.003498299855
A161: -0.1109138599 | B161: 0.07592195123 | C161: 0.003410267819
A162: -0.1171951453 | B162: 0.07004351665 | C162: 0.003328879319
A163: -0.1232635755 | B163: 0.06383217395 | C163: 0.003253758794
A164: -0.1290972097 | B164: 0.05729920445 | C164: 0.003184566371
A165: -0.1346743218 | B165: 0.05045705234 | C165: 0.003120995486
A166: -0.1399734693 | B166: 0.04331931329 | C166: 0.003062770731
A167: -0.1449735627 | B167: 0.03590071941 | C167: 0.00300964594
A168: -0.149653935 | B168: 0.02821712059 | C168: 0.002961402494
A169: -0.1539944124 | B169: 0.02028546203 | C169: 0.002917847849
A170: -0.1579753833 | B170: 0.01212375818 | C170: 0.002878814285
A171: -0.161577869 | B171: 0.00375106286 | C171: 0.002844157868
A172: -0.1647835922 | B172: -0.004812564197 | C172: 0.002813757623
A173: -0.167575046 | B173: -0.01354609458 | C173: 0.002787514927
A174: -0.1699355621 | B174: -0.02242757202 | C174: 0.002765353109
A175: -0.1718493771 | B175: -0.03143415681 | C175: 0.00274721728
A176: -0.1733016982 | B176: -0.0405421738 | C176: 0.002733074393
A177: -0.1742787676 | B177: -0.0497271638 | C177: 0.002722913542
A178: -0.1747679246 | B178: -0.05896393849 | C178: 0.002716746535
A179: -0.1747576665 | B179: -0.06822663849 | C179: 0.002714608739
A180: -0.1742377069 | B180: -0.07748879482 | C180: 0.00271656026
A181: -0.1731990318 | B181: -0.08672339328 | C181: 0.002722687464
A182: -0.1716339538 | B182: -0.09590294197 | C182: 0.002733104915
A183: -0.1695361625 | B183: -0.1049995415 | C183: 0.002747957775
A184: -0.1669007733 | B184: -0.1139849581 | C184: 0.002767424746
A185: -0.1637243721 | B185: -0.1228306991 | C185: 0.002791721654
A186: -0.1600050574 | B186: -0.1315080908 | C186: 0.002821105787
A187: -0.1557424789 | B187: -0.1399883589 | C187: 0.00285588113
A188: -0.1509378719 | B188: -0.1482427103 | C188: 0.002896404699
A189: -0.1455940895 | B189: -0.1562424175 | C189: 0.002943094175
A190: -0.1397156292 | B190: -0.1639589042 | C190: 0.002996437159
A191: -0.1333086568 | B191: -0.1713638326 | C191: 0.003057002393
A192: -0.1263810259 | B192: -0.1784291914 | C192: 0.003125453432
A193: -0.1189422933 | B193: -0.1851273858 | C193: 0.003202565351
A194: -0.1110037305 | B194: -0.1914313273 | C194: 0.003289245272
A195: -0.1025783305 | B195: -0.197314525 | C195: 0.003386557707
A196: -0.0936808114 | B196: -0.2027511765 | C196: 0.003495756029
A197: -0.08432761549 | B197: -0.2077162595 | C197: 0.003618321787
A198: -0.07453690459 | B198: -0.2121856232 | C198: 0.003756014149
A199: -0.06432855205 | B199: -0.2161360791 | C199: 0.003910932523
A200: -0.05372413148 | B200: -0.2195454924 | C200: 0.004085596458
A201: -0.04274690285 | B201: -0.2223928713 | C201: 0.004283048408
A202: -0.03142179673 | B202: -0.2246584572 | C202: 0.004506987011
A203: -0.01977539751 | B203: -0.2263238124 | C203: 0.004761941478
... 797 more rows

Sheet Lorenz
A1: x' = - a (x - y)
A2: y' = R x - y - x z
A3: z' = x y - b z
A5: a | C5: =0.1*M5 -> 9 | M5: 90
A6: R | C6: =0.1*M6 -> 27.4 | M6: 274
A7: b | C7: =0.1*M7 -> 2.7 | M7: 27
A8: h | C8: =0.001*M8 -> 0.005 | M8: 5
A10: t | B10: x | C10: y | D10: z
A11: 0 | B11: 3 | C11: 2 | D11: 3
A12: =A11+$C$8 -> 0.005 | B12: =B11+$C$8*(-$C$5*(B11-C11)) -> 2.955 | C12: =C11+$C$8*($C$6*B11-C11-B11*D11) -> 2.356 | D12: =D11+$C$8*(B11*C11-$C$7*D11) -> 2.9895
A13: =A12+$C$8 -> 0.01 | B13: =B12+$C$8*(-$C$5*(B12-C12)) -> 2.928045 | C13: =C12+$C$8*($C$6*B12-C12-B12*D12) -> 2.704885137 | D13: =D12+$C$8*(B12*C12-$C$7*D12) -> 2.98395165
A14: 0.015 | B14: 2.918002806 | C14: 3.048817153 | D14: 2.98326843
A15: 0.02 | B15: 2.923889452 | C15: 3.389813524 | D15: 2.987476591
A16: 0.025 | B16: 2.944856035 | C16: 3.729762055 | D16: 2.996702857
A17: 0.03 | B17: 2.980176806 | C17: 4.070434229 | D17: 3.01116543
A18: 0.035 | B18: 3.02923839 | C18: 4.413497253 | D18: 3.031167765
A19: 0.04 | B19: 3.091530039 | C19: 4.760524777 | D19: 3.057094677
A20: 0.045 | B20: 3.166634802 | C20: 5.113006269 | D20: 3.089410425
A21: 0.05 | B21: 3.254221518 | C21: 5.472355032 | D21: 3.128658503
A22: 0.055 | B22: 3.354037526 | C22: 5.839914866 | D22: 3.17546289
A23: 0.06 | B23: 3.465902006 | C23: 6.216965324 | D23: 3.230530609
A24: 0.065 | B24: 3.589699856 | C24: 6.60472556 | D24: 3.294655409
A25: 0.07 | B25: 3.725376012 | C25: 7.004356692 | D25: 3.368722473
A26: 0.075 | B26: 3.872930143 | C26: 7.416962633 | D26: 3.453714032
A27: 0.08 | B27: 4.032411605 | C27: 7.843589283 | D27: 3.550715783
A28: 0.085 | B28: 4.203914601 | C28: 8.285221989 | D28: 3.660924022
A29: 0.09 | B29: 4.387573433 | C29: 8.74278112 | D29: 3.785653376
A30: 0.095 | B30: 4.583557779 | C30: 9.217115614 | D30: 3.926345027
A31: 0.1 | B31: 4.792067882 | C31: 9.708994305 | D31: 4.084575279
A32: 0.105 | B32: 5.013329571 | C32: 10.21909482 | D32: 4.262064311
A33: 0.11 | B33: 5.247589007 | C33: 10.74798983 | D33: 4.460684894
A34: 0.115 | B34: 5.495107044 | C34: 11.29613037 | D34: 4.682470815
A35: 0.12 | B35: 5.756153094 | C35: 11.863826 | D35: 4.929624687
A36: 0.125 | B36: 6.030998375 | C36: 12.45122147 | D36: 5.204524747
A37: 0.13 | B37: 6.319908414 | C37: 13.05826974 | D37: 5.509730145
A38: 0.135 | B38: 6.623134673 | C38: 13.68470089 | D38: 5.847984132
A39: 0.14 | B39: 6.940905153 | C39: 14.3299869 | D39: 6.222214431
A40: 0.145 | B40: 7.273413832 | C40: 14.99330197 | D40: 6.635529936
A41: 0.15 | B41: 7.620808798 | C41: 15.67347838 | D41: 7.091212732
A42: 0.155 | B42: 7.98317893 | C42: 16.36895792 | D42: 7.59270427
A43: 0.16 | B43: 8.360538984 | C43: 17.07773906 | D43: 8.143584362
A44: 0.165 | B44: 8.752812987 | C44: 17.79732043 | D44: 8.747541489
A45: 0.17 | B45: 9.159815822 | C45: 18.52464123 | D45: 9.408332765
A46: 0.175 | B46: 9.581232966 | C46: 19.25601982 | D46: 10.12973178
A47: 0.18 | B47: 10.01659837 | C47: 19.98709203 | D47: 10.91546246
A48: 0.185 | B48: 10.46527059 | C48: 20.71275153 | D48: 11.76911709
A49: 0.19 | B49: 10.92640723 | C49: 21.42709487 | D49: 12.69405675
A50: 0.195 | B50: 11.39893817 | C50: 22.12337502 | D50: 13.69329281
A51: 0.2 | B51: 11.88153783 | C51: 22.79396768 | D51: 14.76934828
A52: 0.205 | B52: 12.37259718 | C52: 23.43035568 | D52: 15.92409902
A53: 0.21 | B53: 12.87019631 | C53: 24.0231374 | D53: 17.15859545
A54: 0.215 | B54: 13.37207866 | C54: 24.56206615 | D54: 18.47286688
A55: 0.22 | B55: 13.87562809 | C55: 25.03612745 | D55: 19.86571258
A56: 0.225 | B56: 14.37785057 | C56: 25.43366166 | D56: 21.33448543
A57: 0.23 | B57: 14.87536207 | C57: 25.74253866 | D57: 22.87487681
A58: 0.235 | B58: 15.36438501 | C58: 25.9503902 | D58: 24.48071389
A59: 0.24 | B59: 15.84075525 | C59: 26.04490343 | D59: 26.14378318
A60: 0.245 | B60: 16.29994191 | C60: 26.01417603 | D60: 27.85369681
A61: 0.25 | B61: 16.73708245 | C61: 25.84712899 | D61: 29.59781969
A62: 0.255 | B62: 17.14703454 | C62: 25.5339679 | D62: 31.36127677
A63: 0.26 | B63: 17.52444654 | C63: 25.06667731 | D63: 33.12705868
A64: 0.265 | B64: 17.86384693 | C64: 24.43952625 | D64: 34.87624162
A65: 0.27 | B65: 18.1597525 | C65: 23.64955644 | D65: 36.58833214
A66: 0.275 | B66: 18.40679368 | C66: 22.69701947 | D66: 38.24174012
A67: 0.28 | B67: 18.59985384 | C67: 21.58572601 | D67: 39.8143734
A68: 0.285 | B68: 18.73421808 | C68: 20.32326972 | D68: 41.2843361
A69: 0.29 | B69: 18.80572541 | C69: 18.92109247 | D69: 42.6307004
A70: 0.295 | B70: 18.81091693 | C70: 17.39436516 | D70: 43.83431029
A71: 0.3 | B71: 18.7471721 | C71: 15.76167111 | D71: 44.87856689
A72: 0.305 | B72: 18.61282455 | C72: 14.04449425 | D72: 45.75014004
A73: 0.31 | B73: 18.40724969 | C73: 12.26653209 | D73: 46.43955169
A74: 0.315 | B74: 18.1309174 | C74: 10.45287052 | D74: 46.94158334
A75: 0.32 | B75: 17.78540529 | C75: 8.629072 | D75: 47.25547262
A76: 0.325 | B76: 17.37337029 | C76: 6.820238502 | D76: 47.38488145
A77: =A76+$C$8 -> 0.33 | B77: =B76+$C$8*(-$C$5*(B76-C76)) -> 16.89847936 | C77: =C76+$C$8*($C$6*B76-C76-B76*D76) -> 5.050113581 | D77: =D76+$C$8*(B76*C76-$C$7*D76) -> 47.3376382
A78: 0.335 | B78: 16.3653029 | C78: 3.340284175 | D78: 47.12527628
A79: 0.34 | B79: 15.77917706 | C79: 1.709532148 | D79: 46.76240887
A80: 0.345 | B80: 15.14604304 | C80: 0.1733700988 | D80: 46.2659914
A81: 0.35 | B81: 14.47227275 | C81: -1.25622234 | D81: 45.65452987
A82: 0.355 | B82: 13.76449047 | C82: -2.570863904 | D82: 44.94729176
A83: 0.36 | B83: 13.02939953 | C83: -3.765657236 | D83: 44.16357016
A84: 0.365 | B84: 12.27362197 | C84: -4.838925215 | D84: 43.3220407
A85: 0.37 | B85: 11.50355735 | C85: -5.791836132 | D85: 42.44023745
A86: 0.375 | B86: 10.72526464 | C86: -6.627958122 | D86: 41.53416065
A87: 0.38 | B87: 9.944369618 | C87: -7.352781399 | D87: 40.61801646
A88: 0.385 | B88: 9.165997822 | C88: -7.973241698 | D88: 39.70407936
A89: 0.39 | B89: 8.394732044 | C89: -8.497271313 | D89: 38.80266071
A90: 0.395 | B90: 7.634591893 | C90: -8.933396362 | D90: 37.92216321
A91: 0.4 | B91: 6.889032421 | C91: -9.29039149 | D91: 37.06919983
A92: 0.405 | B92: 6.160958345 | C92: -9.576996688 | D92: 36.24875659
A93: 0.41 | B93: 5.452750369 | C93: -9.801695808 | D93: 35.46438099
A94: 0.415 | B94: 4.766300291 | C94: -9.972552611 | D94: 34.71838084
A95: 0.42 | B95: 4.10305191 | C95: -10.09709785 | D95: 34.0120218
A96: 0.425 | B96: 3.464045171 | C96: -10.18225971 | D96: 33.34571492
A97: 0.43 | B97: 2.849961452 | C97: -10.23432953 | D97: 32.71918873
A98: 0.435 | B98: 2.261168357 | C98: -10.2589553 | D98: 32.13164246
A99: 0.44 | B99: 1.697762793 | C99: -10.26115572 | D99: 31.58187916
A100: 0.445 | B100: 1.15961146 | C100: -10.24534914 | D100: 31.06841875
A101: 0.45 | B101: 0.6463882326 | C101: -10.2153921 | D101: 30.58959198
A102: 0.455 | B102: 0.1576081178 | C102: -10.17462371 | D102: 30.14361694
A103: 0.46 | B103: -0.3073423144 | C103: -10.12591267 | D103: 29.72866009
A104: 0.465 | B104: -0.7491779805 | C104: -10.07170463 | D104: 29.34288379
A105: 0.47 | B105: -1.16869168 | C105: -10.01406828 | D105: 28.98448235
A106: 0.475 | B106: -1.566733627 | C106: -9.954739079 | D106: 28.65170863
A107: 0.48 | B107: -1.944193872 | C107: -9.895159914 | D107: 28.34289269
A108: 0.485 | B108: -2.301987344 | C108: -9.836518284 | D108: 28.05645418
A109: 0.49 | B109: -2.641041236 | C109: -9.779779946 | D109: 27.79090976
A110: 0.495 | B110: -2.962284478 | C110: -9.725719002 | D110: 27.54487649
A111: 0.5 | B111: -3.266639032 | C111: -9.67494458 | D111: 27.31707238
A112: 0.505 | B112: -3.555012781 | C112: -9.627924331 | D112: 27.10631467
A113: 0.51 | B113: -3.828293801 | C113: -9.585004984 | D113: 26.91151639
A114: 0.515 | B114: -4.087345804 | C114: -9.546430253 | D114: 26.73168199
A115: 0.52 | B115: -4.333004605 | C115: -9.512356336 | D115: 26.56590209
A116: 0.525 | B116: -4.566075432 | C116: -9.482865305 | D116: 26.41334783
A117: 0.53 | B117: -4.787330977 | C117: -9.457976619 | D117: 26.27326503
A118: 0.535 | B118: -4.997510031 | C118: -9.437657002 | D118: 26.14496827
A119: 0.54 | B119: -5.197316644 | C119: -9.421828886 | D119: 26.02783513
A120: 0.545 | B120: -5.387419695 | C120: -9.410377618 | D120: 25.9213005
A121: 0.55 | B121: -5.568452802 | C121: -9.403157604 | D121: 25.82485121
A122: 0.555 | B122: -5.741014518 | C122: -9.399997524 | D122: 25.73802091
A123: 0.56 | B123: -5.905668753 | C123: -9.400704767 | D123: 25.66038524
A124: 0.565 | B124: -6.062945374 | C124: -9.405069186 | D124: 25.59155728
A125: 0.57 | B125: -6.213340945 | C125: -9.412866287 | D125: 25.53118336
A126: 0.575 | B126: -6.357319586 | C126: -9.42385993 | D126: 25.47893913
A127: 0.58 | B127: -6.495313901 | C127: -9.43780462 | D127: 25.43452589
A128: 0.585 | B128: -6.627725984 | C128: -9.454447453 | D128: 25.39766731
A129: 0.59 | B129: -6.75492845 | C129: -9.473529778 | D129: 25.36810624
A130: 0.595 | B130: -6.877265509 | C130: -9.494788614 | D130: 25.34560188
A131: 0.6 | B131: -6.995054049 | C131: -9.517957877 | D131: 25.32992717
A132: 0.605 | B132: -7.108584721 | C132: -9.542769445 | D132: 25.3208663
A133: 0.61 | B133: -7.218123034 | C133: -9.568954088 | D133: 25.31821253
A134: 0.615 | B134: -7.323910431 | C134: -9.596242307 | D134: 25.3217661
A135: 0.62 | B135: -7.426165366 | C135: -9.624365091 | D135: 25.33133236
A136: 0.625 | B136: -7.525084353 | C136: -9.653054605 | D136: 25.34672
A137: 0.63 | B137: -7.620843015 | C137: -9.682044858 | D137: 25.36773953
A138: 0.635 | B138: -7.713597098 | C138: -9.711072324 | D138: 25.39420177
A139: 0.64 | B139: -7.803483483 | C139: -9.739876559 | D139: 25.42591654
A140: 0.645 | B140: -7.890621171 | C140: -9.768200815 | D140: 25.4626915
A141: =A140+$C$8 -> 0.65 | B141: =B140+$C$8*(-$C$5*(B140-C140)) -> -7.975112255 | C141: =C140+$C$8*($C$6*B140-C140-B140*D140) -> -9.795792648 | D141: =D140+$C$8*(B140*C140-$C$7*D140) -> 25.50433102
A142: 0.655 | B142: -8.057042873 | C142: -9.822404549 | D142: 25.55063528
A143: 0.66 | B143: -8.136484148 | C143: -9.84779458 | D143: 25.60139938
A144: 0.665 | B144: -8.213493118 | C144: -9.871727035 | D144: 25.65641261
A145: 0.67 | B145: -8.288113644 | C145: -9.893973114 | D145: 25.71545785
A146: 0.675 | B146: -8.36037732 | C146: -9.914311633 | D146: 25.77831104
A147: 0.68 | B147: -8.430304364 | C147: -9.932529733 | D147: 25.84474077
A148: 0.685 | B148: -8.497904506 | C148: -9.948423627 | D148: 25.91450801
A149: 0.69 | B149: -8.563177866 | C149: -9.961799354 | D149: 25.98736593
A150: 0.695 | B150: -8.626115833 | C150: -9.972473542 | D150: 26.06305978
A151: 0.7 | B151: -8.68670193 | C151: -9.98027418 | D151: 26.14132704
A152: 0.705 | B152: -8.744912681 | C152: -9.985041393 | D152: 26.22189746
A153: 0.71 | B153: -8.800718473 | C153: -9.986628206 | D153: 26.30449342
A154: 0.715 | B154: -8.854084411 | C154: -9.98490129 | D154: 26.38883027
A155: 0.72 | B155: -8.904971171 | C155: -9.979741694 | D155: 26.47461686
A156: 0.725 | B156: -8.953335844 | C156: -9.971045537 | D156: 26.56155609
A157: 0.73 | B157: -8.999132781 | C157: -9.958724658 | D157: 26.64934568
A158: 0.735 | B158: -9.042314415 | C158: -9.942707225 | D158: 26.73767894
A159: 0.74 | B159: -9.082832091 | C159: -9.922938265 | D159: 26.8262457
A160: 0.745 | B160: -9.120636869 | C160: -9.899380143 | D160: 26.91473329
A161: 0.75 | B161: -9.155680317 | C161: -9.87201295 | D161: 27.00282765
A162: 0.755 | B162: -9.187915285 | C162: -9.8408348 | D162: 27.09021445
A163: 0.76 | B163: -9.217296663 | C163: -9.805862043 | D163: 27.17658034
A164: 0.765 | B164: -9.243782105 | C164: -9.767129359 | D164: 27.2616142
A165: 0.77 | B165: -9.267332732 | C165: -9.724689753 | D165: 27.34500849
A166: 0.775 | B166: -9.287913798 | C166: -9.678614428 | D166: 27.42646055
A167: 0.78 | B167: -9.305495326 | C167: -9.628992539 | D167: 27.50567402
A168: 0.785 | B168: -9.320052701 | C168: -9.575930831 | D168: 27.58236014
A169: 0.79 | B169: -9.331567217 | C169: -9.519553146 | D169: 27.65623918
A170: 0.795 | B170: -9.340026583 | C170: -9.459999815 | D170: 27.7270417
A171: 0.8 | B171: -9.345425379 | C171: -9.397426925 | D171: 27.79450989
A172: 0.805 | B172: -9.347765448 | C172: -9.332005476 | D172: 27.85839876
A173: 0.81 | B173: -9.34705625 | C173: -9.263920428 | D173: 27.91847737
A174: 0.815 | B174: -9.343315138 | C174: -9.19336964 | D174: 27.97452986
A175: 0.82 | B175: -9.33656759 | C175: -9.120562725 | D175: 28.02635645
A176: 0.825 | B176: -9.326847371 | C176: -9.045719814 | D176: 28.07377439
A177: 0.83 | B177: -9.314196631 | C177: -8.969070261 | D177: 28.11661868
A178: 0.835 | B178: -9.298665945 | C178: -8.890851273 | D178: 28.15474274
A179: 0.84 | B179: -9.280314284 | C179: -8.811306514 | D179: 28.188019
A180: 0.845 | B180: -9.259208935 | C180: -8.730684661 | D180: 28.21633921
A181: 0.85 | B181: -9.235425342 | C181: -8.649237961 | D181: 28.2396148
A182: 0.855 | B182: -9.20904691 | C182: -8.567220773 | D182: 28.25777695
A183: 0.86 | B183: -9.180164734 | C183: -8.484888128 | D183: 28.27077666
A184: 0.865 | B184: -9.148877287 | C184: -8.402494321 | D184: 28.27858452
A185: 0.87 | B185: -9.115290053 | C185: -8.32029154 | D185: 28.28119058
A186: 0.875 | B186: -9.07951512 | C186: -8.238528543 | D186: 28.27860386
A187: 0.88 | B187: -9.041670724 | C187: -8.157449415 | D187: 28.27085193
A188: 0.885 | B188: -9.001880765 | C188: -8.077292386 | D188: 28.25798029
A189: 0.89 | B189: -8.960274288 | C189: -7.998288743 | D189: 28.24005167
A190: 0.895 | B190: -8.916984939 | C190: -7.920661833 | D190: 28.21714528
A191: 0.9 | B191: -8.872150399 | C191: -7.844626163 | D191: 28.18935593
A192: 0.905 | B192: -8.825911808 | C192: -7.770386609 | D192: 28.15679314
A193: 0.91 | B193: -8.778413174 | C193: -7.698137729 | D193: 28.11958016
A194: 0.915 | B194: -8.729800779 | C194: -7.62806318 | D194: 28.077853
A195: 0.92 | B195: -8.680222587 | C195: -7.560335256 | D195: 28.03175934
A196: 0.925 | B196: -8.629827658 | C196: -7.495114521 | D196: 27.98145756
A197: 0.93 | B197: -8.578765566 | C197: -7.432549556 | D197: 27.92711561
A198: 0.935 | B198: -8.527185846 | C198: -7.372776802 | D198: 27.86891005
A199: 0.94 | B199: -8.475237439 | C199: -7.315920502 | D199: 27.80702496
A200: 0.945 | B200: -8.423068177 | C200: -7.262092734 | D200: 27.74165094
A201: 0.95 | B201: -8.370824282 | C201: -7.211393524 | D201: 27.67298416
A202: 0.955 | B202: -8.318649898 | C202: -7.163911044 | D202: 27.60122542
... 4798 more rows

Sheet Sheet1
A7: k | C7: =0.01*M7 -> 0.07 | M7: 7
A8: B | C8: =0.1*M8 -> 5.4 | M8: 54
A9: h | C9: =0.001*M9 -> 0.01 | M9: 10
A11: t | B11: x | C11: y
A12: 0 | B12: 3 | C12: 4.1
A13: =A12+$C$9 -> 0.01 | B13: =B12+$C$9*C12 -> 3.041 | C13: =C12+$C$9*($C$8*COS(A13)-$C$7*C12-B12^3) -> 3.8811273
A14: =A13+$C$9 -> 0.02 | B14: =B13+$C$9*C13 -> 3.079811273 | C14: =C13+$C$9*($C$8*COS(A14)-$C$7*C13-B13^3) -> 3.651177732
A15: 0.03 | B15: 3.11632305 | C15: 3.410470196
A16: 0.04 | B16: 3.150427752 | C16: 3.159398915
A17: 0.05 | B17: 3.182021741 | C17: 2.898433751
A18: 0.06 | B18: 3.211006079 | C18: 2.628119627
A19: 0.07 | B19: 3.237287275 | C19: 2.349074988
A20: 0.08 | B20: 3.260778025 | C20: 2.061989285
A21: 0.09 | B21: 3.281397918 | C21: 1.767619465
A22: 0.1 | B22: 3.299074113 | C22: 1.466785463
A23: 0.11 | B23: 3.313741967 | C23: 1.160364745
A24: 0.12 | B24: 3.325345615 | C24: 0.8492859343
A25: 0.13 | B25: 3.333838474 | C25: 0.5345216036
A26: 0.14 | B26: 3.33918369 | C26: 0.2170803262
A27: 0.15 | B27: 3.341354493 | C27: -0.1020019058
A28: 0.16 | B28: 3.340334474 | C28: -0.4216707606
A29: 0.17 | B29: 3.336117767 | C29: -0.7408630027
A30: 0.18 | B30: 3.328709137 | C30: -1.05851613
A31: 0.19 | B31: 3.318123975 | C31: -1.373578048
A32: 0.2 | B32: 3.304388195 | C32: -1.68501663
A33: 0.21 | B33: 3.287538029 | C33: -1.99182898
A34: 0.22 | B34: 3.267619739 | C34: -2.293050266
A35: 0.23 | B35: 3.244689236 | C35: -2.587761975
A36: 0.24 | B36: 3.218811616 | C36: -2.875099441
A37: 0.25 | B37: 3.190060622 | C37: -3.154258568
A38: 0.26 | B38: 3.158518036 | C38: -3.424501625
A39: 0.27 | B39: 3.12427302 | C39: -3.685162065
A40: 0.28 | B40: 3.087421399 | C40: -3.935648306
A41: 0.29 | B41: 3.048064916 | C41: -4.175446467
A42: 0.3 | B42: 3.006310452 | C42: -4.404122043
A43: 0.31 | B43: 2.962269231 | C43: -4.621320553
A44: 0.32 | B44: 2.916056026 | C44: -4.826767197
A45: 0.33 | B45: 2.867788354 | C45: -5.020265578
A46: 0.34 | B46: 2.817585698 | C46: -5.201695578
A47: 0.35 | B47: 2.765568742 | C47: -5.371010453
A48: 0.36 | B48: 2.711858638 | C48: -5.52823326
A49: 0.37 | B49: 2.656576305 | C49: -5.673452711
A50: 0.38 | B50: 2.599841778 | C50: -5.806818558
A51: 0.39 | B51: 2.541773592 | C51: -5.928536611
A52: 0.4 | B52: 2.482488226 | C52: -6.038863496
A53: 0.41 | B53: 2.422099591 | C53: -6.138101256
A54: 0.42 | B54: 2.360718579 | C54: -6.226591864
A55: 0.43 | B55: 2.29845266 | C55: -6.304711761
A56: 0.44 | B56: 2.235405542 | C56: -6.372866476
A57: 0.45 | B57: 2.171676878 | C57: -6.431485389
A58: 0.46 | B58: 2.107362024 | C58: -6.481016714
A59: 0.47 | B59: 2.042551857 | C59: -6.521922729
A60: 0.48 | B60: 1.977332629 | C60: -6.554675291
A61: 0.49 | B61: 1.911785876 | C61: -6.579751671
A62: 0.5 | B62: 1.84598836 | C62: -6.597630731
A63: 0.51 | B63: 1.780012052 | C63: -6.608789434
A64: 0.52 | B64: 1.713924158 | C64: -6.613699711
A65: 0.53 | B65: 1.647787161 | C65: -6.612825679
A66: 0.54 | B66: 1.581658904 | C66: -6.606621191
A67: 0.55 | B67: 1.515592692 | C67: -6.595527721
A68: 0.56 | B68: 1.449637415 | C68: -6.579972561
A69: 0.57 | B69: 1.383837689 | C69: -6.560367313
A70: 0.58 | B70: 1.318234016 | C70: -6.537106658
A71: 0.59 | B71: 1.25286295 | C71: -6.510567379
A72: 0.6 | B72: 1.187757276 | C72: -6.481107617
A73: 0.61 | B73: 1.1229462 | C73: -6.44906634
A74: 0.62 | B74: 1.058455536 | C74: -6.414763001
A75: 0.63 | B75: 0.9943079064 | C75: -6.378497356
A76: 0.64 | B76: 0.9305229328 | C76: -6.340549444
A77: 0.65 | B77: 0.8671174384 | C77: -6.301179681
A78: =A77+$C$9 -> 0.66 | B78: =B77+$C$9*C77 -> 0.8041056416 | C78: =C77+$C$9*($C$8*COS(A78)-$C$7*C77-B77^3) -> -6.260629067
A79: 0.67 | B79: 0.7414993509 | C79: -6.21911949
A80: 0.68 | B80: 0.679308156 | C80: -6.176854101
A81: 0.69 | B81: 0.617539615 | C81: -6.134017751
A82: 0.7 | B82: 0.5561994375 | C82: -6.090777479
A83: 0.71 | B83: 0.4952916627 | C83: -6.04728304
A84: 0.72 | B84: 0.4348188323 | C84: -6.003667452
A85: 0.73 | B85: 0.3747821578 | C85: -5.960047568
A86: 0.74 | B86: 0.3151816821 | C86: -5.916524657
A87: 0.75 | B87: 0.2560164355 | C87: -5.873184991
A88: 0.76 | B88: 0.1972845856 | C88: -5.830100421
A89: 0.77 | B89: 0.1389835814 | C89: -5.787328961
A90: 0.78 | B90: 0.08111029181 | C90: -5.744915346
A91: 0.79 | B91: 0.02366113836 | C91: -5.702891594
A92: 0.8 | B92: -0.03336777759 | C92: -5.66127754
A93: 0.81 | B93: -0.08998055299 | C93: -5.620081359
A94: 0.82 | B94: -0.1461813666 | C94: -5.579300072
A95: 0.83 | B95: -0.2019743673 | C95: -5.538920033
A96: 0.84 | B96: -0.2573635676 | C96: -5.498917404
A97: 0.85 | B97: -0.3123527417 | C97: -5.459258604
A98: 0.86 | B98: -0.3669453277 | C98: -5.419900755
A99: 0.87 | B99: -0.4211443353 | C99: -5.380792104
A100: 0.88 | B100: -0.4749522563 | C100: -5.341872435
A101: 0.89 | B101: -0.5283709807 | C101: -5.303073479
A102: 0.9 | B102: -0.5814017154 | C102: -5.264319305
A103: 0.91 | B103: -0.6340449085 | C103: -5.225526711
A104: 0.92 | B104: -0.6863001756 | C104: -5.186605611
A105: 0.93 | B105: -0.7381662317 | C105: -5.147459424
A106: 0.94 | B106: -0.789640826 | C106: -5.107985459
A107: 0.95 | B107: -0.8407206806 | C107: -5.068075315
A108: 0.96 | B108: -0.8914014337 | C108: -5.027615274
A109: 0.97 | B109: -0.9416775864 | C109: -4.986486724
A110: 0.98 | B110: -0.9915424537 | C110: -4.944566577
A111: 0.99 | B111: -1.040988119 | C111: -4.901727714
A112: 1 | B112: -1.090005397 | C112: -4.857839448
A113: 1.01 | B113: -1.138583791 | C113: -4.812767999
A114: 1.02 | B114: -1.186711471 | C114: -4.766377006
A115: 1.03 | B115: -1.234375241 | C115: -4.718528056
A116: 1.04 | B116: -1.281560522 | C116: -4.669081236
A117: 1.05 | B117: -1.328251334 | C117: -4.617895726
A118: 1.06 | B118: -1.374430291 | C118: -4.564830411
A119: 1.07 | B119: -1.420078595 | C119: -4.509744527
A120: 1.08 | B120: -1.465176041 | C120: -4.45249834
A121: 1.09 | B121: -1.509701024 | C121: -4.392953849
A122: 1.1 | B122: -1.553630563 | C122: -4.330975528
A123: 1.11 | B123: -1.596940318 | C123: -4.266431087
A124: 1.12 | B124: -1.639604629 | C124: -4.199192267
A125: 1.13 | B125: -1.681596551 | C125: -4.129135657
A126: 1.14 | B126: -1.722887908 | C126: -4.056143527
A127: 1.15 | B127: -1.763449343 | C127: -3.980104687
A128: 1.16 | B128: -1.80325039 | C128: -3.90091535
A129: 1.17 | B129: -1.842259544 | C129: -3.818480009
A130: 1.18 | B130: -1.880444344 | C130: -3.732712313
A131: 1.19 | B131: -1.917771467 | C131: -3.643535936
A132: 1.2 | B132: -1.954206826 | C132: -3.550885434
A133: 1.21 | B133: -1.989715681 | C133: -3.454707087
A134: 1.22 | B134: -2.024262751 | C134: -3.354959705
A135: 1.23 | B135: -2.057812348 | C135: -3.251615402
A136: 1.24 | B136: -2.090328502 | C136: -3.144660322
A137: 1.25 | B137: -2.121775106 | C137: -3.034095307
A138: 1.26 | B138: -2.152116059 | C138: -2.919936506
A139: 1.27 | B139: -2.181315424 | C139: -2.8022159
A140: 1.28 | B140: -2.209337583 | C140: -2.680981751
A141: 1.29 | B141: -2.2361474 | C141: -2.556298957
A142: =A141+$C$9 -> 1.3 | B142: =B141+$C$9*C141 -> -2.26171039 | C142: =C141+$C$9*($C$8*COS(A142)-$C$7*C141-B141^3) -> -2.428249299
A143: 1.31 | B143: -2.285992883 | C143: -2.296931584
A144: 1.32 | B144: -2.308962199 | C144: -2.162461677
A145: 1.33 | B145: -2.330586815 | C145: -2.024972397
A146: 1.34 | B146: -2.350836539 | C146: -1.884613297
A147: 1.35 | B147: -2.369682672 | C147: -1.741550314
A148: 1.36 | B148: -2.387098176 | C148: -1.595965276
A149: 1.37 | B149: -2.403057828 | C149: -1.448055287
A150: 1.38 | B150: -2.417538381 | C150: -1.298031977
A151: 1.39 | B151: -2.430518701 | C151: -1.146120621
A152: 1.4 | B152: -2.441979907 | C152: -0.9925591346
A153: 1.41 | B153: -2.451905498 | C153: -0.8375969561
A154: 1.42 | B154: -2.460281468 | C154: -0.6814938133
A155: 1.43 | B155: -2.467096406 | C155: -0.5245183951
A156: 1.44 | B156: -2.47234159 | C156: -0.3669469335
A157: 1.45 | B157: -2.476011059 | C157: -0.2090617105
A158: 1.46 | B158: -2.478101677 | C158: -0.05114950339
A159: 1.47 | B159: -2.478613172 | C159: 0.1065000155
A160: 1.48 | B160: -2.477548171 | C160: 0.2635959097
A161: 1.49 | B161: -2.474912212 | C161: 0.4198476241
A162: 1.5 | B162: -2.470713736 | C162: 0.5749666264
A163: 1.51 | B163: -2.46496407 | C163: 0.7286680301
A164: 1.52 | B164: -2.45767739 | C164: 0.8806721814
A165: 1.53 | B165: -2.448870668 | C165: 1.030706194
A166: 1.54 | B166: -2.438563606 | C166: 1.178505418
A167: 1.55 | B167: -2.426778552 | C167: 1.323814824
A168: 1.56 | B168: -2.413540403 | C168: 1.4663903
A169: 1.57 | B169: -2.3988765 | C169: 1.605999836
A170: 1.58 | B170: -2.382816502 | C170: 1.742424595
A171: 1.59 | B171: -2.365392256 | C171: 1.875459864
A172: 1.6 | B172: -2.346637657 | C172: 2.004915869
A173: 1.61 | B173: -2.326588499 | C173: 2.130618462
A174: 1.62 | B174: -2.305282314 | C174: 2.252409665
A175: 1.63 | B175: -2.282758217 | C175: 2.370148077
A176: 1.64 | B176: -2.259056737 | C176: 2.483709148
A177: 1.65 | B177: -2.234219645 | C177: 2.592985309
A178: 1.66 | B178: -2.208289792 | C178: 2.697885985
A179: 1.67 | B179: -2.181310932 | C179: 2.798337468
A180: 1.68 | B180: -2.153327558 | C180: 2.894282682
A181: 1.69 | B181: -2.124384731 | C181: 2.985680833
A182: 1.7 | B182: -2.094527922 | C182: 3.072506959
A183: 1.71 | B183: -2.063802853 | C183: 3.154751388
A184: 1.72 | B184: -2.032255339 | C184: 3.232419112
A185: 1.73 | B185: -1.999931148 | C185: 3.305529092
A186: 1.74 | B186: -1.966875857 | C186: 3.374113497
A187: 1.75 | B187: -1.933134722 | C187: 3.438216903
A188: 1.76 | B188: -1.898752553 | C188: 3.497895436
A189: 1.77 | B189: -1.863773599 | C189: 3.553215904
A190: 1.78 | B190: -1.82824144 | C190: 3.604254888
A191: 1.79 | B191: -1.792198891 | C191: 3.651097841
A192: 1.8 | B192: -1.755687912 | C192: 3.693838173
A193: 1.81 | B193: -1.718749531 | C193: 3.732576345
A194: 1.82 | B194: -1.681423767 | C194: 3.767418976
A195: 1.83 | B195: -1.643749577 | C195: 3.798477969
A196: 1.84 | B196: -1.605764798 | C196: 3.825869663
A197: 1.85 | B197: -1.567506101 | C197: 3.849714015
A198: 1.86 | B198: -1.529008961 | C198: 3.870133812
A199: 1.87 | B199: -1.490307623 | C199: 3.887253931
A200: 1.88 | B200: -1.451435083 | C200: 3.901200627
A201: 1.89 | B201: -1.412423077 | C201: 3.912100874
A202: 1.9 | B202: -1.373302068 | C202: 3.920081745
A203: 1.91 | B203: -1.334101251 | C203: 3.925269838
A204: 1.92 | B204: -1.294848553 | C204: 3.927790751
A205: 1.93 | B205: -1.255570645 | C205: 3.927768595
A206: =A205+$C$9 -> 1.94 | B206: =B205+$C$9*C205 -> -1.216292959 | C206: =C205+$C$9*($C$8*COS(A206)-$C$7*C205-B205^3) -> 3.925325561
A207: 1.95 | B207: -1.177039703 | C207: 3.920581524
... 4793 more rows

Sheet Sheet2
A5: a | C5: =0.1*M5 -> 9 | M5: 90
A6: R | C6: =0.1*M6 -> 27.4 | M6: 274
A7: b | C7: =0.1*M7 -> 2.7 | M7: 27
A8: h | C8: =0.001*M8 -> 0.005 | M8: 5
A10: t | B10: x | C10: y | D10: z
A11: 0 | B11: 3 | C11: 2 | D11: 3
A12: =A11+$C$8 -> 0.005 | B12: =B11+$C$8*(-$C$5*(B11-C11)) -> 2.955 | C12: =C11+$C$8*($C$6*B11-C11-B11*D11) -> 2.356 | D12: =D11+$C$8*(B11*C11-$C$7*D11) -> 2.9895
A13: =A12+$C$8 -> 0.01 | B13: =B12+$C$8*(-$C$5*(B12-C12)) -> 2.928045 | C13: =C12+$C$8*($C$6*B12-C12-B12*D12) -> 2.704885137 | D13: =D12+$C$8*(B12*C12-$C$7*D12) -> 2.98395165
A14: 0.015 | B14: 2.918002806 | C14: 3.048817153 | D14: 2.98326843
A15: 0.02 | B15: 2.923889452 | C15: 3.389813524 | D15: 2.987476591
A16: 0.025 | B16: 2.944856035 | C16: 3.729762055 | D16: 2.996702857
A17: 0.03 | B17: 2.980176806 | C17: 4.070434229 | D17: 3.01116543
A18: 0.035 | B18: 3.02923839 | C18: 4.413497253 | D18: 3.031167765
A19: 0.04 | B19: 3.091530039 | C19: 4.760524777 | D19: 3.057094677
A20: 0.045 | B20: 3.166634802 | C20: 5.113006269 | D20: 3.089410425
A21: 0.05 | B21: 3.254221518 | C21: 5.472355032 | D21: 3.128658503
A22: 0.055 | B22: 3.354037526 | C22: 5.839914866 | D22: 3.17546289
A23: 0.06 | B23: 3.465902006 | C23: 6.216965324 | D23: 3.230530609
A24: 0.065 | B24: 3.589699856 | C24: 6.60472556 | D24: 3.294655409
A25: 0.07 | B25: 3.725376012 | C25: 7.004356692 | D25: 3.368722473
A26: 0.075 | B26: 3.872930143 | C26: 7.416962633 | D26: 3.453714032
A27: 0.08 | B27: 4.032411605 | C27: 7.843589283 | D27: 3.550715783
A28: 0.085 | B28: 4.203914601 | C28: 8.285221989 | D28: 3.660924022
A29: 0.09 | B29: 4.387573433 | C29: 8.74278112 | D29: 3.785653376
A30: 0.095 | B30: 4.583557779 | C30: 9.217115614 | D30: 3.926345027
A31: 0.1 | B31: 4.792067882 | C31: 9.708994305 | D31: 4.084575279
A32: 0.105 | B32: 5.013329571 | C32: 10.21909482 | D32: 4.262064311
A33: 0.11 | B33: 5.247589007 | C33: 10.74798983 | D33: 4.460684894
A34: 0.115 | B34: 5.495107044 | C34: 11.29613037 | D34: 4.682470815
A35: 0.12 | B35: 5.756153094 | C35: 11.863826 | D35: 4.929624687
A36: 0.125 | B36: 6.030998375 | C36: 12.45122147 | D36: 5.204524747
A37: 0.13 | B37: 6.319908414 | C37: 13.05826974 | D37: 5.509730145
A38: 0.135 | B38: 6.623134673 | C38: 13.68470089 | D38: 5.847984132
A39: 0.14 | B39: 6.940905153 | C39: 14.3299869 | D39: 6.222214431
A40: 0.145 | B40: 7.273413832 | C40: 14.99330197 | D40: 6.635529936
A41: 0.15 | B41: 7.620808798 | C41: 15.67347838 | D41: 7.091212732
A42: 0.155 | B42: 7.98317893 | C42: 16.36895792 | D42: 7.59270427
A43: 0.16 | B43: 8.360538984 | C43: 17.07773906 | D43: 8.143584362
A44: 0.165 | B44: 8.752812987 | C44: 17.79732043 | D44: 8.747541489
A45: 0.17 | B45: 9.159815822 | C45: 18.52464123 | D45: 9.408332765
A46: 0.175 | B46: 9.581232966 | C46: 19.25601982 | D46: 10.12973178
A47: 0.18 | B47: 10.01659837 | C47: 19.98709203 | D47: 10.91546246
A48: 0.185 | B48: 10.46527059 | C48: 20.71275153 | D48: 11.76911709
A49: 0.19 | B49: 10.92640723 | C49: 21.42709487 | D49: 12.69405675
A50: 0.195 | B50: 11.39893817 | C50: 22.12337502 | D50: 13.69329281
A51: 0.2 | B51: 11.88153783 | C51: 22.79396768 | D51: 14.76934828
A52: 0.205 | B52: 12.37259718 | C52: 23.43035568 | D52: 15.92409902
A53: 0.21 | B53: 12.87019631 | C53: 24.0231374 | D53: 17.15859545
A54: 0.215 | B54: 13.37207866 | C54: 24.56206615 | D54: 18.47286688
A55: 0.22 | B55: 13.87562809 | C55: 25.03612745 | D55: 19.86571258
A56: 0.225 | B56: 14.37785057 | C56: 25.43366166 | D56: 21.33448543
A57: 0.23 | B57: 14.87536207 | C57: 25.74253866 | D57: 22.87487681
A58: 0.235 | B58: 15.36438501 | C58: 25.9503902 | D58: 24.48071389
A59: 0.24 | B59: 15.84075525 | C59: 26.04490343 | D59: 26.14378318
A60: 0.245 | B60: 16.29994191 | C60: 26.01417603 | D60: 27.85369681
A61: 0.25 | B61: 16.73708245 | C61: 25.84712899 | D61: 29.59781969
A62: 0.255 | B62: 17.14703454 | C62: 25.5339679 | D62: 31.36127677
A63: 0.26 | B63: 17.52444654 | C63: 25.06667731 | D63: 33.12705868
A64: 0.265 | B64: 17.86384693 | C64: 24.43952625 | D64: 34.87624162
A65: 0.27 | B65: 18.1597525 | C65: 23.64955644 | D65: 36.58833214
A66: 0.275 | B66: 18.40679368 | C66: 22.69701947 | D66: 38.24174012
A67: 0.28 | B67: 18.59985384 | C67: 21.58572601 | D67: 39.8143734
A68: 0.285 | B68: 18.73421808 | C68: 20.32326972 | D68: 41.2843361
A69: 0.29 | B69: 18.80572541 | C69: 18.92109247 | D69: 42.6307004
A70: 0.295 | B70: 18.81091693 | C70: 17.39436516 | D70: 43.83431029
A71: 0.3 | B71: 18.7471721 | C71: 15.76167111 | D71: 44.87856689
A72: 0.305 | B72: 18.61282455 | C72: 14.04449425 | D72: 45.75014004
A73: 0.31 | B73: 18.40724969 | C73: 12.26653209 | D73: 46.43955169
A74: 0.315 | B74: 18.1309174 | C74: 10.45287052 | D74: 46.94158334
A75: 0.32 | B75: 17.78540529 | C75: 8.629072 | D75: 47.25547262
A76: 0.325 | B76: 17.37337029 | C76: 6.820238502 | D76: 47.38488145
A77: =A76+$C$8 -> 0.33 | B77: =B76+$C$8*(-$C$5*(B76-C76)) -> 16.89847936 | C77: =C76+$C$8*($C$6*B76-C76-B76*D76) -> 5.050113581 | D77: =D76+$C$8*(B76*C76-$C$7*D76) -> 47.3376382
A78: 0.335 | B78: 16.3653029 | C78: 3.340284175 | D78: 47.12527628
A79: 0.34 | B79: 15.77917706 | C79: 1.709532148 | D79: 46.76240887
A80: 0.345 | B80: 15.14604304 | C80: 0.1733700988 | D80: 46.2659914
A81: 0.35 | B81: 14.47227275 | C81: -1.25622234 | D81: 45.65452987
A82: 0.355 | B82: 13.76449047 | C82: -2.570863904 | D82: 44.94729176
A83: 0.36 | B83: 13.02939953 | C83: -3.765657236 | D83: 44.16357016
A84: 0.365 | B84: 12.27362197 | C84: -4.838925215 | D84: 43.3220407
A85: 0.37 | B85: 11.50355735 | C85: -5.791836132 | D85: 42.44023745
A86: 0.375 | B86: 10.72526464 | C86: -6.627958122 | D86: 41.53416065
A87: 0.38 | B87: 9.944369618 | C87: -7.352781399 | D87: 40.61801646
A88: 0.385 | B88: 9.165997822 | C88: -7.973241698 | D88: 39.70407936
A89: 0.39 | B89: 8.394732044 | C89: -8.497271313 | D89: 38.80266071
A90: 0.395 | B90: 7.634591893 | C90: -8.933396362 | D90: 37.92216321
A91: 0.4 | B91: 6.889032421 | C91: -9.29039149 | D91: 37.06919983
A92: 0.405 | B92: 6.160958345 | C92: -9.576996688 | D92: 36.24875659
A93: 0.41 | B93: 5.452750369 | C93: -9.801695808 | D93: 35.46438099
A94: 0.415 | B94: 4.766300291 | C94: -9.972552611 | D94: 34.71838084
A95: 0.42 | B95: 4.10305191 | C95: -10.09709785 | D95: 34.0120218
A96: 0.425 | B96: 3.464045171 | C96: -10.18225971 | D96: 33.34571492
A97: 0.43 | B97: 2.849961452 | C97: -10.23432953 | D97: 32.71918873
A98: 0.435 | B98: 2.261168357 | C98: -10.2589553 | D98: 32.13164246
A99: 0.44 | B99: 1.697762793 | C99: -10.26115572 | D99: 31.58187916
A100: 0.445 | B100: 1.15961146 | C100: -10.24534914 | D100: 31.06841875
A101: 0.45 | B101: 0.6463882326 | C101: -10.2153921 | D101: 30.58959198
A102: 0.455 | B102: 0.1576081178 | C102: -10.17462371 | D102: 30.14361694
A103: 0.46 | B103: -0.3073423144 | C103: -10.12591267 | D103: 29.72866009
A104: 0.465 | B104: -0.7491779805 | C104: -10.07170463 | D104: 29.34288379
A105: 0.47 | B105: -1.16869168 | C105: -10.01406828 | D105: 28.98448235
A106: 0.475 | B106: -1.566733627 | C106: -9.954739079 | D106: 28.65170863
A107: 0.48 | B107: -1.944193872 | C107: -9.895159914 | D107: 28.34289269
A108: 0.485 | B108: -2.301987344 | C108: -9.836518284 | D108: 28.05645418
A109: 0.49 | B109: -2.641041236 | C109: -9.779779946 | D109: 27.79090976
A110: 0.495 | B110: -2.962284478 | C110: -9.725719002 | D110: 27.54487649
A111: 0.5 | B111: -3.266639032 | C111: -9.67494458 | D111: 27.31707238
A112: 0.505 | B112: -3.555012781 | C112: -9.627924331 | D112: 27.10631467
A113: 0.51 | B113: -3.828293801 | C113: -9.585004984 | D113: 26.91151639
A114: 0.515 | B114: -4.087345804 | C114: -9.546430253 | D114: 26.73168199
A115: 0.52 | B115: -4.333004605 | C115: -9.512356336 | D115: 26.56590209
A116: 0.525 | B116: -4.566075432 | C116: -9.482865305 | D116: 26.41334783
A117: 0.53 | B117: -4.787330977 | C117: -9.457976619 | D117: 26.27326503
A118: 0.535 | B118: -4.997510031 | C118: -9.437657002 | D118: 26.14496827
A119: 0.54 | B119: -5.197316644 | C119: -9.421828886 | D119: 26.02783513
A120: 0.545 | B120: -5.387419695 | C120: -9.410377618 | D120: 25.9213005
A121: 0.55 | B121: -5.568452802 | C121: -9.403157604 | D121: 25.82485121
A122: 0.555 | B122: -5.741014518 | C122: -9.399997524 | D122: 25.73802091
A123: 0.56 | B123: -5.905668753 | C123: -9.400704767 | D123: 25.66038524
A124: 0.565 | B124: -6.062945374 | C124: -9.405069186 | D124: 25.59155728
A125: 0.57 | B125: -6.213340945 | C125: -9.412866287 | D125: 25.53118336
A126: 0.575 | B126: -6.357319586 | C126: -9.42385993 | D126: 25.47893913
A127: 0.58 | B127: -6.495313901 | C127: -9.43780462 | D127: 25.43452589
A128: 0.585 | B128: -6.627725984 | C128: -9.454447453 | D128: 25.39766731
A129: 0.59 | B129: -6.75492845 | C129: -9.473529778 | D129: 25.36810624
A130: 0.595 | B130: -6.877265509 | C130: -9.494788614 | D130: 25.34560188
A131: 0.6 | B131: -6.995054049 | C131: -9.517957877 | D131: 25.32992717
A132: 0.605 | B132: -7.108584721 | C132: -9.542769445 | D132: 25.3208663
A133: 0.61 | B133: -7.218123034 | C133: -9.568954088 | D133: 25.31821253
A134: 0.615 | B134: -7.323910431 | C134: -9.596242307 | D134: 25.3217661
A135: 0.62 | B135: -7.426165366 | C135: -9.624365091 | D135: 25.33133236
A136: 0.625 | B136: -7.525084353 | C136: -9.653054605 | D136: 25.34672
A137: 0.63 | B137: -7.620843015 | C137: -9.682044858 | D137: 25.36773953
A138: 0.635 | B138: -7.713597098 | C138: -9.711072324 | D138: 25.39420177
A139: 0.64 | B139: -7.803483483 | C139: -9.739876559 | D139: 25.42591654
A140: 0.645 | B140: -7.890621171 | C140: -9.768200815 | D140: 25.4626915
A141: =A140+$C$8 -> 0.65 | B141: =B140+$C$8*(-$C$5*(B140-C140)) -> -7.975112255 | C141: =C140+$C$8*($C$6*B140-C140-B140*D140) -> -9.795792648 | D141: =D140+$C$8*(B140*C140-$C$7*D140) -> 25.50433102
A142: 0.655 | B142: -8.057042873 | C142: -9.822404549 | D142: 25.55063528
A143: 0.66 | B143: -8.136484148 | C143: -9.84779458 | D143: 25.60139938
A144: 0.665 | B144: -8.213493118 | C144: -9.871727035 | D144: 25.65641261
A145: 0.67 | B145: -8.288113644 | C145: -9.893973114 | D145: 25.71545785
A146: 0.675 | B146: -8.36037732 | C146: -9.914311633 | D146: 25.77831104
A147: 0.68 | B147: -8.430304364 | C147: -9.932529733 | D147: 25.84474077
A148: 0.685 | B148: -8.497904506 | C148: -9.948423627 | D148: 25.91450801
A149: 0.69 | B149: -8.563177866 | C149: -9.961799354 | D149: 25.98736593
A150: 0.695 | B150: -8.626115833 | C150: -9.972473542 | D150: 26.06305978
A151: 0.7 | B151: -8.68670193 | C151: -9.98027418 | D151: 26.14132704
A152: 0.705 | B152: -8.744912681 | C152: -9.985041393 | D152: 26.22189746
A153: 0.71 | B153: -8.800718473 | C153: -9.986628206 | D153: 26.30449342
A154: 0.715 | B154: -8.854084411 | C154: -9.98490129 | D154: 26.38883027
A155: 0.72 | B155: -8.904971171 | C155: -9.979741694 | D155: 26.47461686
A156: 0.725 | B156: -8.953335844 | C156: -9.971045537 | D156: 26.56155609
A157: 0.73 | B157: -8.999132781 | C157: -9.958724658 | D157: 26.64934568
A158: 0.735 | B158: -9.042314415 | C158: -9.942707225 | D158: 26.73767894
A159: 0.74 | B159: -9.082832091 | C159: -9.922938265 | D159: 26.8262457
A160: 0.745 | B160: -9.120636869 | C160: -9.899380143 | D160: 26.91473329
A161: 0.75 | B161: -9.155680317 | C161: -9.87201295 | D161: 27.00282765
A162: 0.755 | B162: -9.187915285 | C162: -9.8408348 | D162: 27.09021445
A163: 0.76 | B163: -9.217296663 | C163: -9.805862043 | D163: 27.17658034
A164: 0.765 | B164: -9.243782105 | C164: -9.767129359 | D164: 27.2616142
A165: 0.77 | B165: -9.267332732 | C165: -9.724689753 | D165: 27.34500849
A166: 0.775 | B166: -9.287913798 | C166: -9.678614428 | D166: 27.42646055
A167: 0.78 | B167: -9.305495326 | C167: -9.628992539 | D167: 27.50567402
A168: 0.785 | B168: -9.320052701 | C168: -9.575930831 | D168: 27.58236014
A169: 0.79 | B169: -9.331567217 | C169: -9.519553146 | D169: 27.65623918
A170: 0.795 | B170: -9.340026583 | C170: -9.459999815 | D170: 27.7270417
A171: 0.8 | B171: -9.345425379 | C171: -9.397426925 | D171: 27.79450989
A172: 0.805 | B172: -9.347765448 | C172: -9.332005476 | D172: 27.85839876
A173: 0.81 | B173: -9.34705625 | C173: -9.263920428 | D173: 27.91847737
A174: 0.815 | B174: -9.343315138 | C174: -9.19336964 | D174: 27.97452986
A175: 0.82 | B175: -9.33656759 | C175: -9.120562725 | D175: 28.02635645
A176: 0.825 | B176: -9.326847371 | C176: -9.045719814 | D176: 28.07377439
A177: 0.83 | B177: -9.314196631 | C177: -8.969070261 | D177: 28.11661868
A178: 0.835 | B178: -9.298665945 | C178: -8.890851273 | D178: 28.15474274
A179: 0.84 | B179: -9.280314284 | C179: -8.811306514 | D179: 28.188019
A180: 0.845 | B180: -9.259208935 | C180: -8.730684661 | D180: 28.21633921
A181: 0.85 | B181: -9.235425342 | C181: -8.649237961 | D181: 28.2396148
A182: 0.855 | B182: -9.20904691 | C182: -8.567220773 | D182: 28.25777695
A183: 0.86 | B183: -9.180164734 | C183: -8.484888128 | D183: 28.27077666
A184: 0.865 | B184: -9.148877287 | C184: -8.402494321 | D184: 28.27858452
A185: 0.87 | B185: -9.115290053 | C185: -8.32029154 | D185: 28.28119058
A186: 0.875 | B186: -9.07951512 | C186: -8.238528543 | D186: 28.27860386
A187: 0.88 | B187: -9.041670724 | C187: -8.157449415 | D187: 28.27085193
A188: 0.885 | B188: -9.001880765 | C188: -8.077292386 | D188: 28.25798029
A189: 0.89 | B189: -8.960274288 | C189: -7.998288743 | D189: 28.24005167
A190: 0.895 | B190: -8.916984939 | C190: -7.920661833 | D190: 28.21714528
A191: 0.9 | B191: -8.872150399 | C191: -7.844626163 | D191: 28.18935593
A192: 0.905 | B192: -8.825911808 | C192: -7.770386609 | D192: 28.15679314
A193: 0.91 | B193: -8.778413174 | C193: -7.698137729 | D193: 28.11958016
A194: 0.915 | B194: -8.729800779 | C194: -7.62806318 | D194: 28.077853
A195: 0.92 | B195: -8.680222587 | C195: -7.560335256 | D195: 28.03175934
A196: 0.925 | B196: -8.629827658 | C196: -7.495114521 | D196: 27.98145756
A197: 0.93 | B197: -8.578765566 | C197: -7.432549556 | D197: 27.92711561
A198: 0.935 | B198: -8.527185846 | C198: -7.372776802 | D198: 27.86891005
A199: 0.94 | B199: -8.475237439 | C199: -7.315920502 | D199: 27.80702496
A200: 0.945 | B200: -8.423068177 | C200: -7.262092734 | D200: 27.74165094
A201: 0.95 | B201: -8.370824282 | C201: -7.211393524 | D201: 27.67298416
A202: 0.955 | B202: -8.318649898 | C202: -7.163911044 | D202: 27.60122542
A203: 0.96 | B203: -8.266686649 | C203: -7.11972187 | D203: 27.52657921
A204: 0.965 | B204: -8.215073234 | C204: -7.078891307 | D204: 27.44925294
A205: =A204+$C$8 -> 0.97 | B205: =B204+$C$8*(-$C$5*(B204-C204)) -> -8.163945048 | C205: =C204+$C$8*($C$6*B204-C204-B204*D204) -> -7.041473768 | D205: =D204+$C$8*(B204*C204-$C$7*D204) -> 27.36945608
... 4795 more rows

Sheet Duffin
A2: x'' + k x' + x^3 = B cos(t)
A4: x' = y
A5: y' = B cos(t) - k y - x^3
A7: k | C7: =0.01*M7 -> 0.1 | M7: 10
A8: B | C8: =0.1*M8 -> 6 | M8: 60
A9: h | C9: =0.001*M9 -> 0.005 | M9: 5
A11: t | B11: x | C11: y
A12: 0 | B12: 3 | C12: 4.1
A13: =A12+$C$9 -> 0.005 | B13: =B12+$C$9*C12 -> 3.0205 | C13: =C12+$C$9*($C$8*COS(A13)-$C$7*C12-B12^3) -> 3.992949625
A14: =A13+$C$9 -> 0.01 | B14: =B13+$C$9*C13 -> 3.040464748 | C14: =C13+$C$9*($C$8*COS(A14)-$C$7*C13-B13^3) -> 3.883165196
A15: 0.015 | B15: =B14+$C$9*C14 -> 3.059880574 | C15: 3.770683483
A16: 0.02 | B16: 3.078733992 | C16: 3.655545835
A17: 0.025 | B17: 3.097011721 | C17: 3.537798201
A18: 0.03 | B18: 3.114700712 | C18: 3.417491149
A19: 0.035 | B19: 3.131788167 | C19: 3.294679857
A20: 0.04 | B20: 3.148261567 | C20: 3.169424108
A21: 0.045 | B21: 3.164108687 | C21: 3.041788252
A22: 0.05 | B22: 3.179317629 | C22: 2.91184117
A23: 0.055 | B23: 3.193876834 | C23: 2.77965621
A24: 0.06 | B24: 3.207775115 | C24: 2.645311118
A25: 0.065 | B25: 3.221001671 | C25: 2.508887947
A26: 0.07 | B26: 3.233546111 | C26: 2.370472959
A27: 0.075 | B27: 3.245398476 | C27: 2.230156499
A28: 0.08 | B28: 3.256549258 | C28: 2.08803287
A29: 0.085 | B29: 3.266989422 | C29: 1.944200178
A30: 0.09 | B30: 3.276710423 | C30: 1.798760178
A31: 0.095 | B31: 3.285704224 | C31: 1.651818091
A32: 0.1 | B32: 3.293963315 | C32: 1.50348242
A33: 0.105 | B33: 3.301480727 | C33: 1.353864745
A34: 0.11 | B34: 3.30825005 | C34: 1.203079511
A35: 0.115 | B35: 3.314265448 | C35: 1.051243797
A36: 0.12 | B36: 3.319521667 | C36: 0.8984770852
A37: 0.125 | B37: 3.324014052 | C37: 0.7449010109
A38: 0.13 | B38: 3.327738557 | C38: 0.5906391071
A39: 0.135 | B39: 3.330691753 | C39: 0.4358165407
A40: 0.14 | B40: 3.332870836 | C40: 0.2805598418
A41: 0.145 | B41: 3.334273635 | C41: 0.1249966261
A42: 0.15 | B42: 3.334898618 | C42: -0.03074468624
A43: 0.155 | B43: 3.334744895 | C43: -0.1865351565
A44: 0.16 | B44: 3.333812219 | C44: -0.3422456154
A45: 0.165 | B45: 3.332100991 | C45: -0.4977469529
A46: 0.17 | B46: 3.329612256 | C46: -0.6529104071
A47: 0.175 | B47: 3.326347704 | C47: -0.8076078534
A48: 0.18 | B48: 3.322309665 | C48: -0.9617120905
A49: 0.185 | B49: 3.317501104 | C49: -1.115097123
A50: 0.19 | B50: 3.311925619 | C50: -1.267638441
A51: 0.195 | B51: 3.305587426 | C51: -1.41921329
A52: 0.2 | B52: 3.29849136 | C52: -1.569700939
A53: 0.205 | B53: 3.290642855 | C53: -1.718982935
A54: 0.21 | B54: 3.282047941 | C54: -1.866943356
A55: 0.215 | B55: 3.272713224 | C55: -2.013469048
A56: 0.22 | B56: 3.262645879 | C56: -2.158449849
A57: 0.225 | B57: 3.251853629 | C57: -2.301778814
A58: 0.23 | B58: 3.240344735 | C58: -2.443352409
A59: 0.235 | B59: 3.228127973 | C59: -2.583070712
A60: 0.24 | B60: 3.21521262 | C60: -2.720837582
A61: 0.245 | B61: 3.201608432 | C61: -2.856560828
A62: 0.25 | B62: 3.187325628 | C62: -2.990152354
A63: 0.255 | B63: 3.172374866 | C63: -3.121528296
A64: 0.26 | B64: 3.156767224 | C64: -3.250609138
A65: 0.265 | B65: 3.140514179 | C65: -3.377319815
A66: 0.27 | B66: 3.12362758 | C66: -3.501589805
A67: 0.275 | B67: 3.106119631 | C67: -3.623353195
A68: 0.28 | B68: 3.088002865 | C68: -3.742548742
A69: 0.285 | B69: 3.069290121 | C69: -3.859119915
A70: 0.29 | B70: 3.049994521 | C70: -3.973014919
A71: 0.295 | B71: 3.030129447 | C71: -4.084186708
A72: 0.3 | B72: 3.009708513 | C72: -4.192592982
A73: 0.305 | B73: 2.988745548 | C73: -4.298196173
A74: 0.31 | B74: 2.967254567 | C74: -4.400963409
A75: 0.315 | B75: 2.94524975 | C75: -4.500866479
A76: 0.32 | B76: 2.922745418 | C76: -4.59788177
A77: 0.325 | B77: 2.899756009 | C77: -4.691990206
A78: =A77+$C$9 -> 0.33 | B78: 2.876296058 | C78: =C77+$C$9*($C$8*COS(A78)-$C$7*C77-B77^3) -> -4.783177164
A79: 0.335 | B79: =B78+$C$9*C78 -> 2.852380172 | C79: -4.871432389
A80: 0.34 | B80: 2.82802301 | C80: -4.956749894
A81: 0.345 | B81: 2.803239261 | C81: -5.039127854
A82: 0.35 | B82: 2.778043622 | C82: -5.118568486
A83: 0.355 | B83: 2.752450779 | C83: -5.195077932
A84: 0.36 | B84: 2.726475389 | C84: -5.268666121
A85: 0.365 | B85: 2.700132059 | C85: -5.33934664
A86: 0.37 | B86: 2.673435326 | C86: -5.407136588
A87: 0.375 | B87: 2.646399643 | C87: -5.47205643
A88: 0.38 | B88: 2.619039361 | C88: -5.53412985
A89: 0.385 | B89: 2.591368711 | C89: -5.593383596
A90: 0.39 | B90: 2.563401793 | C90: -5.649847321
A91: 0.395 | B91: 2.535152557 | C91: -5.703553435
A92: 0.4 | B92: 2.50663479 | C92: -5.754536937
A93: 0.405 | B93: 2.477862105 | C93: -5.80283526
A94: 0.41 | B94: 2.448847929 | C94: -5.848488114
A95: 0.415 | B95: 2.419605488 | C95: -5.891537325
A96: 0.42 | B96: 2.390147801 | C96: -5.932026677
A97: 0.425 | B97: 2.360487668 | C97: -5.970001762
A98: 0.43 | B98: 2.330637659 | C98: -6.005509818
A99: 0.435 | B99: 2.30061011 | C99: -6.038599588
A100: 0.44 | B100: 2.270417112 | C100: -6.069321164
A101: 0.445 | B101: 2.240070506 | C101: -6.097725844
A102: 0.45 | B102: 2.209581877 | C102: -6.123865995
A103: 0.455 | B103: 2.178962547 | C103: -6.14779491
A104: 0.46 | B104: 2.148223573 | C104: -6.169566676
A105: 0.465 | B105: 2.117375739 | C105: -6.18923605
A106: 0.47 | B106: 2.086429559 | C106: -6.206858325
A107: 0.475 | B107: 2.055395267 | C107: -6.222489218
A108: 0.48 | B108: 2.024282821 | C108: -6.236184751
A109: 0.485 | B109: 1.993101897 | C109: -6.24800114
A110: 0.49 | B110: 1.961861892 | C110: -6.257994694
A111: 0.495 | B111: 1.930571918 | C111: -6.266221707
A112: 0.5 | B112: 1.89924081 | C112: -6.272738369
A113: 0.505 | B113: 1.867877118 | C113: -6.277600671
A114: 0.51 | B114: 1.836489115 | C114: -6.280864325
A115: 0.515 | B115: 1.805084793 | C115: -6.282584674
A116: 0.52 | B116: 1.77367187 | C116: -6.282816626
A117: 0.525 | B117: 1.742257786 | C117: -6.281614577
A118: 0.53 | B118: 1.710849714 | C118: -6.279032345
A119: 0.535 | B119: 1.679454552 | C119: -6.275123114
A120: 0.54 | B120: 1.648078936 | C120: -6.269939367
A121: 0.545 | B121: 1.616729239 | C121: -6.263532843
A122: 0.55 | B122: 1.585411575 | C122: -6.255954484
A123: 0.555 | B123: 1.554131803 | C123: -6.247254391
A124: 0.56 | B124: 1.522895531 | C124: -6.237481782
A125: 0.565 | B125: 1.491708122 | C125: -6.226684962
A126: 0.57 | B126: 1.460574697 | C126: -6.214911284
A127: 0.575 | B127: 1.429500141 | C127: -6.202207122
A128: 0.58 | B128: 1.398489105 | C128: -6.188617846
A129: 0.585 | B129: 1.367546016 | C129: -6.174187803
A130: 0.59 | B130: 1.336675077 | C130: -6.158960289
A131: 0.595 | B131: 1.305880275 | C131: -6.142977542
A132: 0.6 | B132: 1.275165388 | C132: -6.126280725
A133: 0.605 | B133: 1.244533984 | C133: -6.108909915
A134: 0.61 | B134: 1.213989435 | C134: -6.090904094
A135: 0.615 | B135: 1.183534914 | C135: -6.072301146
A136: 0.62 | B136: 1.153173408 | C136: -6.053137854
A137: 0.625 | B137: 1.122907719 | C137: -6.033449893
A138: 0.63 | B138: 1.09274047 | C138: -6.013271836
A139: 0.635 | B139: 1.06267411 | C139: -5.992637157
A140: 0.64 | B140: 1.032710925 | C140: -5.971578229
A141: 0.645 | B141: 1.002853033 | C141: -5.950126335
A142: =A141+$C$9 -> 0.65 | B142: 0.9731024018 | C142: =C141+$C$9*($C$8*COS(A142)-$C$7*C141-B141^3) -> -5.928311676
A143: 0.655 | B143: =B142+$C$9*C142 -> 0.9434608434 | C143: -5.906163373
A144: 0.66 | B144: 0.9139300266 | C144: -5.883709484
A145: 0.665 | B145: 0.8845114791 | C145: -5.860977008
A146: 0.67 | B146: 0.8552065941 | C146: -5.837991904
A147: 0.675 | B147: 0.8260166346 | C147: -5.814779098
A148: 0.68 | B148: 0.7969427391 | C148: -5.791362497
A149: 0.685 | B149: 0.7679859266 | C149: -5.767765006
A150: 0.69 | B150: 0.7391471016 | C150: -5.744008543
A151: 0.695 | B151: 0.7104270589 | C151: -5.72011405
A152: 0.7 | B152: 0.6818264886 | C152: -5.696101514
A153: 0.705 | B153: 0.653345981 | C153: -5.671989979
A154: 0.71 | B154: 0.6249860311 | C154: -5.647797567
A155: 0.715 | B155: 0.5967470433 | C155: -5.623541492
A156: 0.72 | B156: 0.5686293358 | C156: -5.599238079
A157: 0.725 | B157: 0.5406331455 | C157: -5.574902778
A158: 0.73 | B158: 0.5127586316 | C158: -5.550550187
A159: 0.735 | B159: 0.4850058806 | C159: -5.526194066
A160: 0.74 | B160: 0.4573749103 | C160: -5.501847353
A161: 0.745 | B161: 0.4298656735 | C161: -5.477522188
A162: 0.75 | B162: 0.4024780626 | C162: -5.453229923
A163: 0.755 | B163: 0.375211913 | C163: -5.428981147
A164: 0.76 | B164: 0.3480670072 | C164: -5.404785695
A165: 0.765 | B165: 0.3210430788 | C165: -5.380652674
A166: 0.77 | B166: 0.2941398154 | C166: -5.356590475
A167: 0.775 | B167: 0.267356863 | C167: -5.332606791
A168: 0.78 | B168: 0.2406938291 | C168: -5.308708634
A169: 0.785 | B169: 0.2141502859 | C169: -5.284902353
A170: 0.79 | B170: 0.1877257741 | C170: -5.261193647
A171: 0.795 | B171: 0.1614198059 | C171: -5.237587586
A172: 0.8 | B172: 0.135231868 | C172: -5.214088621
A173: 0.805 | B173: 0.1091614249 | C173: -5.190700605
A174: 0.81 | B174: 0.08320792183 | C174: -5.167426806
A175: 0.815 | B175: 0.05737078781 | C175: -5.144269921
A176: 0.82 | B176: 0.0316494382 | C176: -5.121232094
A177: 0.825 | B177: 0.006043277735 | C177: -5.098314927
A178: 0.83 | B178: -0.0194482969 | C178: -5.075519498
A179: 0.835 | B179: -0.04482589439 | C179: -5.052846371
A180: 0.84 | B180: -0.07009012625 | C180: -5.030295613
A181: 0.845 | B181: -0.09524160431 | C181: -5.007866805
A182: 0.85 | B182: -0.1202809383 | C182: -4.985559057
A183: 0.855 | B183: -0.1452087336 | C183: -4.963371022
A184: 0.86 | B184: -0.1700255887 | C184: -4.941300903
A185: 0.865 | B185: -0.1947320932 | C185: -4.919346473
A186: 0.87 | B186: -0.2193288256 | C186: -4.897505082
A187: 0.875 | B187: -0.243816351 | C187: -4.875773669
A188: 0.88 | B188: -0.2681952194 | C188: -4.854148778
A189: 0.885 | B189: -0.2924659633 | C189: -4.832626564
A190: 0.89 | B190: -0.3166290961 | C190: -4.811202808
A191: 0.895 | B191: -0.3406851101 | C191: -4.789872925
A192: 0.9 | B192: -0.3646344747 | C192: -4.768631979
A193: 0.905 | B193: -0.3884776346 | C193: -4.74747469
A194: 0.91 | B194: -0.4122150081 | C194: -4.726395445
A195: 0.915 | B195: -0.4358469853 | C195: -4.705388309
A196: 0.92 | B196: -0.4593739269 | C196: -4.684447037
A197: 0.925 | B197: -0.482796162 | C197: -4.663565081
A198: 0.93 | B198: -0.5061139874 | C198: -4.642735599
A199: 0.935 | B199: -0.5293276654 | C199: -4.621951469
A200: 0.94 | B200: -0.5524374228 | C200: -4.601205297
A201: 0.945 | B201: -0.5754434493 | C201: -4.580489424
A202: 0.95 | B202: -0.5983458964 | C202: -4.559795939
A203: 0.955 | B203: -0.6211448761 | C203: -4.539116686
A204: 0.96 | B204: -0.6438404595 | C204: -4.518443274
... 4796 more rows
